[Event "Early-Titled-Tuesday-Blitz-February-13-2024"]
[Site "Chess.com"]
[Date "2024.02.13"]
[Round "6"]
[White "cukin84"]
[Black "sansanathalia"]
[Result "1-0"]
[WhiteElo "2240"]
[BlackElo "2376"]
[TimeControl "180+1"]
[EndTime "9:11:02 PST"]
[Termination "cukin84 won on time"]

1. e4 {[%clk 0:03:00.9]} 1... c5 {[%clk 0:02:55.2]} 2. Nc3 {[%clk 0:02:59.7]}
2... d6 {[%clk 0:02:54.7]} 3. f4 {[%clk 0:02:57.6]} 3... Nf6 {[%clk 0:02:54.2]}
4. Nf3 {[%clk 0:02:57.8]} 4... e6 {[%clk 0:02:53.9]} 5. d3 {[%clk 0:02:58.2]}
5... Be7 {[%clk 0:02:54.3]} 6. g3 {[%clk 0:02:58.2]} 6... O-O {[%clk 0:02:54.9]}
7. Bg2 {[%clk 0:02:58.5]} 7... Nc6 {[%clk 0:02:55.5]} 8. O-O {[%clk 0:02:58.7]}
8... d5 {[%clk 0:02:56.1]} 9. e5 {[%clk 0:02:58.5]} 9... Nd7 {[%clk 0:02:56]}
10. Qe1 {[%clk 0:02:54.9]} 10... a6 {[%clk 0:02:56.3]} 11. f5 {[%clk 0:02:52.9]}
11... d4 {[%clk 0:02:48.2]} 12. fxe6 {[%clk 0:02:46.7]} 12... fxe6 {[%clk
0:02:42.2]} 13. Ne4 {[%clk 0:02:38.3]} 13... Ndxe5 {[%clk 0:02:36]} 14. Nxe5
{[%clk 0:02:37.8]} 14... Nxe5 {[%clk 0:02:36.8]} 15. Rxf8+ {[%clk 0:02:33.4]}
15... Bxf8 {[%clk 0:02:25.1]} 16. Bf4 {[%clk 0:02:31.3]} 16... Ng6 {[%clk
0:02:21.9]} 17. Bg5 {[%clk 0:02:26.7]} 17... Qb6 {[%clk 0:02:19.6]} 18. b3
{[%clk 0:02:25.4]} 18... h6 {[%clk 0:02:18.7]} 19. Bd2 {[%clk 0:02:24]} 19... e5
{[%clk 0:02:18.8]} 20. Ba5 {[%clk 0:02:09.3]} 20... Qe6 {[%clk 0:02:13.8]} 21.
Nd2 {[%clk 0:02:06.3]} 21... Be7 {[%clk 0:01:55.2]} 22. Nc4 {[%clk 0:02:05.5]}
22... Bf6 {[%clk 0:01:50.6]} 23. Nb6 {[%clk 0:02:04]} 23... Ne7 {[%clk
0:00:58.3]} 24. Nxa8 {[%clk 0:02:02]} 24... Nc6 {[%clk 0:00:56]} 25. Nb6 {[%clk
0:01:51.1]} 25... Kh8 {[%clk 0:00:55.3]} 26. Nxc8 {[%clk 0:01:44.9]} 26... Qxc8
{[%clk 0:00:55.7]} 27. Bxc6 {[%clk 0:01:43.9]} 27... Qxc6 {[%clk 0:00:55.8]} 28.
Qe4 {[%clk 0:01:43]} 28... Qb5 {[%clk 0:00:55.5]} 29. Bd2 {[%clk 0:01:40.9]}
29... Qd7 {[%clk 0:00:55]} 30. Rf1 {[%clk 0:01:39.9]} 30... Qe7 {[%clk
0:00:53.1]} 31. Qg6 {[%clk 0:01:35.7]} 31... c4 {[%clk 0:00:30.6]} 32. bxc4
{[%clk 0:01:34.7]} 32... b5 {[%clk 0:00:29.3]} 33. cxb5 {[%clk 0:01:33.9]} 33...
axb5 {[%clk 0:00:30.2]} 34. Bxh6 {[%clk 0:01:32.9]} 34... e4 {[%clk 0:00:30.2]}
35. dxe4 {[%clk 0:01:25]} 35... d3 {[%clk 0:00:28]} 36. Be3 {[%clk 0:01:04.6]}
36... dxc2 {[%clk 0:00:25.9]} 37. Qf5 {[%clk 0:00:49.5]} 37... Qa3 {[%clk
0:00:24.3]} 38. Bg5 {[%clk 0:00:39.8]} 38... Bd4+ {[%clk 0:00:17.4]} 39. Kh1
{[%clk 0:00:39.4]} 39... Qc3 {[%clk 0:00:17]} 40. Qh3+ {[%clk 0:00:35.9]} 40...
Kg8 {[%clk 0:00:16.8]} 41. Qe6+ {[%clk 0:00:35.6]} 41... Kh7 {[%clk 0:00:16]}
42. Qf5+ {[%clk 0:00:31.1]} 42... Kg8 {[%clk 0:00:15.8]} 43. Rc1 {[%clk
0:00:27.1]} 43... Qd3 {[%clk 0:00:12.6]} 44. Kg2 {[%clk 0:00:24.7]} 44... Qe2+
{[%clk 0:00:12]} 45. Kh3 {[%clk 0:00:24.4]} 45... Bb2 {[%clk 0:00:04.7]} 46.
Qe6+ {[%clk 0:00:20.1]} 46... Kh7 {[%clk 0:00:04.1]} 47. Qf5+ {[%clk 0:00:18.5]}
47... Kh8 {[%clk 0:00:02.9]} 48. Rf1 {[%clk 0:00:17.3]} 48... Qh5+ {[%clk
0:00:01.7]} 49. Bh4 {[%clk 0:00:16.3]} 49... Qxf5+ {[%clk 0:00:01.7]} 50. exf5
{[%clk 0:00:16.1]} 50... c1=Q {[%clk 0:00:01.5]} 51. Rxc1 {[%clk 0:00:15.7]}
51... Bxc1 {[%clk 0:00:02.4]} 52. f6 {[%clk 0:00:14.7]} 52... g6 {[%clk
0:00:02]} 53. Kg4 {[%clk 0:00:10.6]} 53... Kg8 {[%clk 0:00:01.8]} 54. Bg5 {[%clk
0:00:09.5]} 54... Bb2 {[%clk 0:00:01.7]} 55. h4 {[%clk 0:00:07.4]} 55... Be5
{[%clk 0:00:01.5]} 56. h5 {[%clk 0:00:06.5]} 56... gxh5+ {[%clk 0:00:01.6]} 57.
Kxh5 {[%clk 0:00:07.4]} 57... Kf7 {[%clk 0:00:01]} 58. g4 {[%clk 0:00:06.4]} 1-0

[Event "Early-Titled-Tuesday-Blitz-February-13-2024"]
[Site "Chess.com"]
[Date "2024.02.13"]
[Round "6"]
[White "Adar_07"]
[Black "TRadjabov"]
[Result "1-0"]
[WhiteElo "2816"]
[BlackElo "3023"]
[TimeControl "180+1"]
[EndTime "9:11:05 PST"]
[Termination "Adar_07 won by resignation"]

1. e4 {[%clk 0:03:00.9]} 1... e5 {[%clk 0:02:54.7]} 2. Nf3 {[%clk 0:03:00.6]}
2... Nc6 {[%clk 0:02:55.4]} 3. Bb5 {[%clk 0:03:00.3]} 3... Nf6 {[%clk
0:02:55.5]} 4. O-O {[%clk 0:03:00.7]} 4... Nxe4 {[%clk 0:02:55.3]} 5. Re1 {[%clk
0:03:00.1]} 5... Nd6 {[%clk 0:02:56]} 6. Nxe5 {[%clk 0:03:00.2]} 6... Be7 {[%clk
0:02:56.1]} 7. Bf1 {[%clk 0:02:59.7]} 7... Nxe5 {[%clk 0:02:56.3]} 8. Rxe5
{[%clk 0:03:00.6]} 8... O-O {[%clk 0:02:56.9]} 9. d4 {[%clk 0:03:00.2]} 9... Bf6
{[%clk 0:02:57.3]} 10. Re1 {[%clk 0:03:00.3]} 10... Nf5 {[%clk 0:02:56.3]} 11.
c3 {[%clk 0:03:00.8]} 11... d6 {[%clk 0:02:55.6]} 12. Nd2 {[%clk 0:02:58.4]}
12... Bg5 {[%clk 0:02:54.8]} 13. Ne4 {[%clk 0:02:58.3]} 13... Bxc1 {[%clk
0:02:53.8]} 14. Qxc1 {[%clk 0:02:59.2]} 14... Bd7 {[%clk 0:02:50.8]} 15. Bd3
{[%clk 0:02:55.6]} 15... Re8 {[%clk 0:02:48.9]} 16. Qf4 {[%clk 0:02:54.5]} 16...
Qh4 {[%clk 0:02:46.5]} 17. Qxh4 {[%clk 0:02:43.6]} 17... Nxh4 {[%clk 0:02:46.4]}
18. Ng3 {[%clk 0:02:40.6]} 18... Ng6 {[%clk 0:02:39.7]} 19. Bf5 {[%clk
0:02:37.2]} 19... Bc6 {[%clk 0:02:32.4]} 20. Be4 {[%clk 0:02:35.5]} 20... Nf4
{[%clk 0:02:31.7]} 21. f3 {[%clk 0:02:25.1]} 21... g6 {[%clk 0:02:28.3]} 22.
Bxc6 {[%clk 0:02:10.9]} 22... bxc6 {[%clk 0:02:27.8]} 23. Ne4 {[%clk 0:02:11.1]}
23... Kg7 {[%clk 0:02:26.8]} 24. Rad1 {[%clk 0:01:53.4]} 24... a5 {[%clk
0:02:20.4]} 25. g3 {[%clk 0:01:51.6]} 25... Nd5 {[%clk 0:02:19.9]} 26. Kf2
{[%clk 0:01:47.3]} 26... a4 {[%clk 0:02:18]} 27. c4 {[%clk 0:01:39]} 27... Ne7
{[%clk 0:01:37.3]} 28. Re2 {[%clk 0:01:27.6]} 28... Reb8 {[%clk 0:01:10.7]} 29.
c5 {[%clk 0:01:03.7]} 29... d5 {[%clk 0:01:05.9]} 30. Nc3 {[%clk 0:01:02]} 30...
Kf8 {[%clk 0:01:02.7]} 31. g4 {[%clk 0:01:00]} 31... Ng8 {[%clk 0:00:49.9]} 32.
a3 {[%clk 0:00:53.9]} 32... Nf6 {[%clk 0:00:49.4]} 33. Na2 {[%clk 0:00:53.6]}
33... Ne8 {[%clk 0:00:27.3]} 34. Nb4 {[%clk 0:00:51.6]} 34... Rxb4 {[%clk
0:00:27.5]} 35. axb4 {[%clk 0:00:51.6]} 35... Ng7 {[%clk 0:00:28.4]} 36. Ra1
{[%clk 0:00:41.8]} 36... Ne6 {[%clk 0:00:28.1]} 37. Rd2 {[%clk 0:00:32.9]} 37...
Kg7 {[%clk 0:00:25.2]} 38. b3 {[%clk 0:00:32.6]} 38... a3 {[%clk 0:00:25]} 39.
Ke3 {[%clk 0:00:29.6]} 39... Rb8 {[%clk 0:00:25.3]} 40. Rxa3 {[%clk 0:00:28.8]}
40... Rxb4 {[%clk 0:00:26.2]} 41. Rd3 {[%clk 0:00:26.8]} 41... g5 {[%clk
0:00:24.6]} 42. Ra4 {[%clk 0:00:23]} 42... Rb8 {[%clk 0:00:22.8]} 43. Kd2 {[%clk
0:00:18.3]} 43... h5 {[%clk 0:00:20.1]} 44. Ra6 {[%clk 0:00:11.2]} 44... Nd8
{[%clk 0:00:13.3]} 45. Ra7 {[%clk 0:00:10.5]} 45... Ne6 {[%clk 0:00:13.3]} 46.
Ra6 {[%clk 0:00:09.9]} 46... Nd8 {[%clk 0:00:13.6]} 47. Re3 {[%clk 0:00:10.5]}
47... Kf8 {[%clk 0:00:11.3]} 48. gxh5 {[%clk 0:00:10.6]} 48... Ne6 {[%clk
0:00:07.9]} 49. Kc3 {[%clk 0:00:04.6]} 49... Nd8 {[%clk 0:00:05.4]} 50. h6
{[%clk 0:00:04.2]} 50... f6 {[%clk 0:00:05]} 51. Ra7 {[%clk 0:00:02.3]} 51...
Rc8 {[%clk 0:00:04.4]} 52. h7 {[%clk 0:00:01.7]} 52... Nf7 {[%clk 0:00:03.9]}
53. Re6 {[%clk 0:00:02]} 53... Kg7 {[%clk 0:00:04.4]} 54. Rxc6 {[%clk
0:00:02.5]} 54... Kxh7 {[%clk 0:00:03.4]} 55. Rcxc7 {[%clk 0:00:03.2]} 55...
Rxc7 {[%clk 0:00:03.4]} 56. Rxc7 {[%clk 0:00:04.1]} 1-0

[Event "Early-Titled-Tuesday-Blitz-February-13-2024"]
[Site "Chess.com"]
[Date "2024.02.13"]
[Round "6"]
[White "MatthewG-p4p"]
[Black "Storne89"]
[Result "1/2-1/2"]
[WhiteElo "2816"]
[BlackElo "2586"]
[TimeControl "180+1"]
[EndTime "9:11:05 PST"]
[Termination "Game drawn - insufficient material"]

1. e4 {[%clk 0:02:55.5]} 1... c5 {[%clk 0:02:58.7]} 2. c3 {[%clk 0:02:52.4]}
2... e6 {[%clk 0:02:58.3]} 3. d4 {[%clk 0:02:52.8]} 3... d5 {[%clk 0:02:59]} 4.
e5 {[%clk 0:02:52.4]} 4... Bd7 {[%clk 0:02:58]} 5. Nf3 {[%clk 0:02:51.9]} 5...
a6 {[%clk 0:02:58]} 6. Be2 {[%clk 0:02:43]} 6... cxd4 {[%clk 0:02:55.7]} 7. cxd4
{[%clk 0:02:42.8]} 7... Bb5 {[%clk 0:02:56.4]} 8. Nc3 {[%clk 0:02:43.6]} 8...
Bxe2 {[%clk 0:02:56.2]} 9. Nxe2 {[%clk 0:02:44.5]} 9... Nc6 {[%clk 0:02:55.1]}
10. a3 {[%clk 0:02:39.9]} 10... Nge7 {[%clk 0:02:52.3]} 11. Nf4 {[%clk
0:02:29.7]} 11... Ng6 {[%clk 0:02:37.6]} 12. Nh5 {[%clk 0:02:28.1]} 12... Nh4
{[%clk 0:02:37.8]} 13. Nxh4 {[%clk 0:01:48.1]} 13... Qxh4 {[%clk 0:02:37.5]} 14.
Nf4 {[%clk 0:01:49]} 14... g5 {[%clk 0:02:08.5]} 15. g3 {[%clk 0:01:45.4]} 15...
Qh6 {[%clk 0:02:09.1]} 16. Nh5 {[%clk 0:01:43]} 16... Be7 {[%clk 0:02:07.9]} 17.
h4 {[%clk 0:01:43.2]} 17... Qg6 {[%clk 0:02:04.3]} 18. hxg5 {[%clk 0:01:29.3]}
18... Qe4+ {[%clk 0:02:01.7]} 19. Kd2 {[%clk 0:01:23.3]} 19... Qxd4+ {[%clk
0:01:57.2]} 20. Ke2 {[%clk 0:01:15.6]} 20... Qe4+ {[%clk 0:01:55.1]} 21. Be3
{[%clk 0:00:52.9]} 21... d4 {[%clk 0:01:33.3]} 22. Rh4 {[%clk 0:00:49.1]} 22...
Qxe5 {[%clk 0:01:26]} 23. Rxd4 {[%clk 0:00:44.5]} 23... Nxd4+ {[%clk 0:01:03.2]}
24. Qxd4 {[%clk 0:00:45.4]} 24... Qxd4 {[%clk 0:01:03.8]} 25. Bxd4 {[%clk
0:00:46.3]} 25... Rg8 {[%clk 0:01:04.2]} 26. f4 {[%clk 0:00:44.7]} 26... O-O-O
{[%clk 0:01:00]} 27. Be5 {[%clk 0:00:43.1]} 27... Bd6 {[%clk 0:00:51.3]} 28.
Rc1+ {[%clk 0:00:40]} 28... Kb8 {[%clk 0:00:51]} 29. Bc3 {[%clk 0:00:38.9]}
29... Be7 {[%clk 0:00:47.5]} 30. g4 {[%clk 0:00:32.4]} 30... Rc8 {[%clk
0:00:41.5]} 31. Rh1 {[%clk 0:00:25]} 31... Bd6 {[%clk 0:00:26.3]} 32. Kf3 {[%clk
0:00:19.7]} 32... Rc4 {[%clk 0:00:25]} 33. Rd1 {[%clk 0:00:09.8]} 33... Rd8
{[%clk 0:00:13.7]} 34. Be5 {[%clk 0:00:07]} 34... Kc7 {[%clk 0:00:13.3]} 35.
Rxd6 {[%clk 0:00:03.8]} 35... Rxd6 {[%clk 0:00:13.4]} 36. Nf6 {[%clk 0:00:04.7]}
36... Kc6 {[%clk 0:00:12.8]} 37. Bxd6 {[%clk 0:00:05.2]} 37... Kxd6 {[%clk
0:00:13.1]} 38. Nxh7 {[%clk 0:00:06.1]} 38... Rc2 {[%clk 0:00:11]} 39. f5 {[%clk
0:00:06.5]} 39... Ke7 {[%clk 0:00:10.9]} 40. g6 {[%clk 0:00:02.9]} 40... fxg6
{[%clk 0:00:10.8]} 41. fxg6 {[%clk 0:00:02.7]} 41... Rxb2 {[%clk 0:00:07.1]} 42.
Kf4 {[%clk 0:00:03.4]} 42... Rh2 {[%clk 0:00:05.8]} 43. Kg5 {[%clk 0:00:03.6]}
43... b5 {[%clk 0:00:05.9]} 44. Nf6 {[%clk 0:00:03.7]} 44... Rh8 {[%clk
0:00:03.6]} 45. g7 {[%clk 0:00:03.7]} 45... Rb8 {[%clk 0:00:04]} 46. g8=Q {[%clk
0:00:03.3]} 46... Rxg8+ {[%clk 0:00:04.7]} 47. Nxg8+ {[%clk 0:00:04.2]} 47...
Kd6 {[%clk 0:00:05]} 48. Kf4 {[%clk 0:00:04.9]} 48... a5 {[%clk 0:00:04.6]} 49.
Nf6 {[%clk 0:00:04.7]} 49... b4 {[%clk 0:00:04.4]} 50. axb4 {[%clk 0:00:05.6]}
50... axb4 {[%clk 0:00:05.3]} 51. Ne4+ {[%clk 0:00:06.3]} 51... Kd5 {[%clk
0:00:05.2]} 52. Nd2 {[%clk 0:00:06.4]} 52... e5+ {[%clk 0:00:04.8]} 53. Ke3
{[%clk 0:00:07]} 53... Ke6 {[%clk 0:00:04.5]} 54. Ke4 {[%clk 0:00:07.9]} 54...
Kf6 {[%clk 0:00:04.8]} 55. Nb3 {[%clk 0:00:06.3]} 55... Kg5 {[%clk 0:00:05.2]}
56. Kf3 {[%clk 0:00:06.2]} 56... e4+ {[%clk 0:00:04.7]} 57. Kxe4 {[%clk
0:00:03.1]} 57... Kxg4 {[%clk 0:00:04.8]} 58. Kd4 {[%clk 0:00:04]} 58... Kf4
{[%clk 0:00:04.6]} 59. Kc4 {[%clk 0:00:04.9]} 59... Kg4 {[%clk 0:00:05.5]} 60.
Kxb4 {[%clk 0:00:05.8]} 1/2-1/2

[Event "Early-Titled-Tuesday-Blitz-February-13-2024"]
[Site "Chess.com"]
[Date "2024.02.13"]
[Round "6"]
[White "Bugcrusher"]
[Black "ProfessorChess101"]
[Result "0-1"]
[WhiteElo "2448"]
[BlackElo "2787"]
[TimeControl "180+1"]
[EndTime "9:11:16 PST"]
[Termination "ProfessorChess101 won by checkmate"]

1. d4 {[%clk 0:02:58.2]} 1... Nf6 {[%clk 0:02:59.9]} 2. c4 {[%clk 0:02:58]} 2...
e6 {[%clk 0:02:57.3]} 3. Nf3 {[%clk 0:02:57.6]} 3... a6 {[%clk 0:02:57]} 4. Nc3
{[%clk 0:02:56.4]} 4... d5 {[%clk 0:02:56.7]} 5. c5 {[%clk 0:02:56.7]} 5... Nc6
{[%clk 0:02:52.7]} 6. Bf4 {[%clk 0:02:52]} 6... b6 {[%clk 0:02:49.3]} 7. cxb6
{[%clk 0:02:52.9]} 7... cxb6 {[%clk 0:02:50.2]} 8. e3 {[%clk 0:02:52.8]} 8...
Bd6 {[%clk 0:02:50]} 9. Bd3 {[%clk 0:02:51.1]} 9... Bxf4 {[%clk 0:02:48.6]} 10.
exf4 {[%clk 0:02:51.4]} 10... O-O {[%clk 0:02:47.6]} 11. O-O {[%clk 0:02:50.9]}
11... a5 {[%clk 0:02:47.8]} 12. a3 {[%clk 0:02:46.1]} 12... Ba6 {[%clk
0:02:45.4]} 13. Rc1 {[%clk 0:02:45.3]} 13... Bxd3 {[%clk 0:02:44.3]} 14. Qxd3
{[%clk 0:02:45.1]} 14... Ne7 {[%clk 0:02:40]} 15. Ne5 {[%clk 0:02:27.9]} 15...
Nf5 {[%clk 0:02:25]} 16. Nb5 {[%clk 0:02:19.2]} 16... Rc8 {[%clk 0:02:18.8]} 17.
f3 {[%clk 0:02:09.6]} 17... Qe7 {[%clk 0:01:57.7]} 18. Nc6 {[%clk 0:01:59]}
18... Qb7 {[%clk 0:01:55.1]} 19. Ne5 {[%clk 0:01:45]} 19... Qa6 {[%clk
0:01:52.1]} 20. a4 {[%clk 0:01:43.7]} 20... Rxc1 {[%clk 0:01:41.6]} 21. Rxc1
{[%clk 0:01:42.9]} 21... Rc8 {[%clk 0:01:41]} 22. Qd2 {[%clk 0:01:42.6]} 22...
h5 {[%clk 0:01:28.3]} 23. Rc3 {[%clk 0:01:40.6]} 23... Ne7 {[%clk 0:01:12.8]}
24. Nd6 {[%clk 0:01:28.8]} 24... Rd8 {[%clk 0:01:01]} 25. Ndxf7 {[%clk
0:01:25.2]} 25... Rc8 {[%clk 0:00:56.6]} 26. Ng5 {[%clk 0:01:23.2]} 26... Rxc3
{[%clk 0:00:41.6]} 27. Qxc3 {[%clk 0:01:23.3]} 27... Qe2 {[%clk 0:00:39.3]} 28.
Nxe6 {[%clk 0:01:21.2]} 28... h4 {[%clk 0:00:27.8]} 29. Ng5 {[%clk 0:01:11.1]}
29... Nh5 {[%clk 0:00:16.5]} 30. Nd3 {[%clk 0:00:35.6]} 30... Qe3+ {[%clk
0:00:15]} 31. Kf1 {[%clk 0:00:34.5]} 31... Nxf4 {[%clk 0:00:13.9]} 32. Nxf4
{[%clk 0:00:33.1]} 32... Qxf4 {[%clk 0:00:14.8]} 33. Nh3 {[%clk 0:00:29.8]}
33... Qf5 {[%clk 0:00:08.5]} 34. Qc7 {[%clk 0:00:28.3]} 34... Qb1+ {[%clk
0:00:08.1]} 35. Kf2 {[%clk 0:00:28.7]} 35... Qxb2+ {[%clk 0:00:08.6]} 36. Kg1
{[%clk 0:00:29.2]} 36... Qxd4+ {[%clk 0:00:08.5]} 37. Kf1 {[%clk 0:00:29.5]}
37... Qc4+ {[%clk 0:00:04.2]} 38. Qxc4 {[%clk 0:00:28.5]} 38... dxc4 {[%clk
0:00:05.1]} 39. Ke2 {[%clk 0:00:28.7]} 39... Nd5 {[%clk 0:00:05.2]} 40. Kd2
{[%clk 0:00:28]} 40... Kf7 {[%clk 0:00:04.8]} 41. Ng5+ {[%clk 0:00:27.5]} 41...
Ke7 {[%clk 0:00:04.5]} 42. Ne4 {[%clk 0:00:27.2]} 42... Kd7 {[%clk 0:00:04.1]}
43. g3 {[%clk 0:00:27.6]} 43... hxg3 {[%clk 0:00:03.7]} 44. hxg3 {[%clk
0:00:28.2]} 44... Kc6 {[%clk 0:00:04.4]} 45. f4 {[%clk 0:00:28.7]} 45... Ne7
{[%clk 0:00:04.3]} 46. g4 {[%clk 0:00:28.7]} 46... Kd5 {[%clk 0:00:04.2]} 47.
Nc3+ {[%clk 0:00:28.7]} 47... Kd4 {[%clk 0:00:04]} 48. f5 {[%clk 0:00:29.2]}
48... Nd5 {[%clk 0:00:03.2]} 49. Nxd5 {[%clk 0:00:25.3]} 49... Kxd5 {[%clk
0:00:04.1]} 50. Kc3 {[%clk 0:00:25.8]} 50... Ke5 {[%clk 0:00:03]} 51. Kxc4
{[%clk 0:00:25.9]} 51... Kf4 {[%clk 0:00:03.7]} 52. Kb5 {[%clk 0:00:26.3]} 52...
Kxg4 {[%clk 0:00:04.3]} 53. Kxb6 {[%clk 0:00:26.9]} 53... Kxf5 {[%clk 0:00:05]}
54. Kxa5 {[%clk 0:00:27.5]} 54... g5 {[%clk 0:00:05.1]} 55. Kb5 {[%clk
0:00:26.9]} 55... Ke6 {[%clk 0:00:04]} 56. Kc6 {[%clk 0:00:26.5]} 56... g4
{[%clk 0:00:03.7]} 57. a5 {[%clk 0:00:26.5]} 57... g3 {[%clk 0:00:04.3]} 58. a6
{[%clk 0:00:26.6]} 58... g2 {[%clk 0:00:05]} 59. a7 {[%clk 0:00:26.7]} 59...
g1=Q {[%clk 0:00:05.6]} 60. Kb7 {[%clk 0:00:27.1]} 60... Qb1+ {[%clk 0:00:05.1]}
61. Kc8 {[%clk 0:00:26.7]} 61... Qc2+ {[%clk 0:00:04.9]} 62. Kb8 {[%clk
0:00:27]} 62... Qb3+ {[%clk 0:00:05.2]} 63. Kc8 {[%clk 0:00:27.6]} 63... Qc4+
{[%clk 0:00:05.7]} 64. Kb8 {[%clk 0:00:28.1]} 64... Qb5+ {[%clk 0:00:06.3]} 65.
Kc8 {[%clk 0:00:28.7]} 65... Qc6+ {[%clk 0:00:06.7]} 66. Kb8 {[%clk 0:00:29.3]}
66... Kd7 {[%clk 0:00:06.8]} 67. a8=N {[%clk 0:00:24.8]} 67... Qb5+ {[%clk
0:00:03.9]} 68. Ka7 {[%clk 0:00:24.7]} 68... Kc6 {[%clk 0:00:04.3]} 69. Nc7
{[%clk 0:00:24.7]} 69... Qb7# {[%clk 0:00:04.2]} 0-1

[Event "Early-Titled-Tuesday-Blitz-February-13-2024"]
[Site "Chess.com"]
[Date "2024.02.13"]
[Round "6"]
[White "valorant64"]
[Black "Beca95"]
[Result "1/2-1/2"]
[WhiteElo "2618"]
[BlackElo "2914"]
[TimeControl "180+1"]
[EndTime "9:11:17 PST"]
[Termination "Game drawn - insufficient material"]

1. e4 {[%clk 0:02:55.4]} 1... c5 {[%clk 0:02:44.8]} 2. Nf3 {[%clk 0:02:53.2]}
2... Nc6 {[%clk 0:02:44.9]} 3. Bb5 {[%clk 0:02:52.2]} 3... e6 {[%clk 0:02:44.4]}
4. O-O {[%clk 0:02:50.4]} 4... Nge7 {[%clk 0:02:44.1]} 5. Re1 {[%clk 0:02:49.9]}
5... a6 {[%clk 0:02:44]} 6. Bf1 {[%clk 0:02:48.1]} 6... d5 {[%clk 0:02:44.2]} 7.
exd5 {[%clk 0:02:48]} 7... Qxd5 {[%clk 0:02:45.1]} 8. Nc3 {[%clk 0:02:45.5]}
8... Qd8 {[%clk 0:02:44.9]} 9. a4 {[%clk 0:02:44.7]} 9... Nf5 {[%clk 0:02:44.5]}
10. d3 {[%clk 0:02:44.4]} 10... Be7 {[%clk 0:02:44.2]} 11. Ne4 {[%clk
0:02:43.6]} 11... b6 {[%clk 0:02:43.4]} 12. Bg5 {[%clk 0:02:43.3]} 12... Bb7
{[%clk 0:02:42.3]} 13. Bxe7 {[%clk 0:02:43]} 13... Qxe7 {[%clk 0:02:42.5]} 14.
c3 {[%clk 0:02:42.7]} 14... Rd8 {[%clk 0:02:42.1]} 15. Qc2 {[%clk 0:02:42.6]}
15... O-O {[%clk 0:02:41.4]} 16. Rad1 {[%clk 0:02:38.1]} 16... Nh4 {[%clk
0:02:40.8]} 17. Nxh4 {[%clk 0:02:37]} 17... Qxh4 {[%clk 0:02:41.7]} 18. Qb3
{[%clk 0:02:36.8]} 18... Ba8 {[%clk 0:02:28.8]} 19. Qxb6 {[%clk 0:02:35.5]}
19... Rb8 {[%clk 0:02:28.5]} 20. Qxc5 {[%clk 0:02:32.6]} 20... Rxb2 {[%clk
0:02:28.4]} 21. Re2 {[%clk 0:02:32.3]} 21... Rfb8 {[%clk 0:02:16.2]} 22. Qa3
{[%clk 0:02:03.6]} 22... Rxe2 {[%clk 0:02:10.3]} 23. Bxe2 {[%clk 0:02:04.5]}
23... h6 {[%clk 0:02:10.5]} 24. h3 {[%clk 0:01:59.1]} 24... f5 {[%clk
0:02:00.1]} 25. Ng3 {[%clk 0:01:57.4]} 25... f4 {[%clk 0:01:54.3]} 26. Ne4
{[%clk 0:01:56.9]} 26... Kh7 {[%clk 0:01:43.6]} 27. Bg4 {[%clk 0:01:42.7]} 27...
Rd8 {[%clk 0:01:27.3]} 28. Qc5 {[%clk 0:01:36.9]} 28... Rd5 {[%clk 0:01:25.9]}
29. Qf8 {[%clk 0:01:31.7]} 29... Rd8 {[%clk 0:01:25.5]} 30. Qxf4 {[%clk
0:01:30]} 30... Qe7 {[%clk 0:01:23.2]} 31. d4 {[%clk 0:01:24.5]} 31... Kh8
{[%clk 0:01:21.2]} 32. Nc5 {[%clk 0:01:21.7]} 32... e5 {[%clk 0:01:20.5]} 33.
Qe3 {[%clk 0:01:20.6]} 33... a5 {[%clk 0:01:04.7]} 34. Bf3 {[%clk 0:01:11.9]}
34... exd4 {[%clk 0:01:01.4]} 35. Qxe7 {[%clk 0:01:09.9]} 35... Nxe7 {[%clk
0:01:01.4]} 36. Bxa8 {[%clk 0:01:08.2]} 36... Rxa8 {[%clk 0:01:01.5]} 37. Rxd4
{[%clk 0:01:07.6]} 37... Rc8 {[%clk 0:01:01.8]} 38. Ne4 {[%clk 0:01:07]} 38...
Rb8 {[%clk 0:00:55.8]} 39. Rd7 {[%clk 0:01:04.3]} 39... Ng6 {[%clk 0:00:55.8]}
40. Rd5 {[%clk 0:01:03]} 40... Rb1+ {[%clk 0:00:55.1]} 41. Kh2 {[%clk
0:01:02.8]} 41... Re1 {[%clk 0:00:55.8]} 42. Ng3 {[%clk 0:00:58.3]} 42... Rc1
{[%clk 0:00:53.8]} 43. Ne4 {[%clk 0:00:53.7]} 43... Re1 {[%clk 0:00:53.7]} 44.
f3 {[%clk 0:00:54.2]} 44... Nf4 {[%clk 0:00:52.6]} 45. Rxa5 {[%clk 0:00:51]}
45... Re2 {[%clk 0:00:52.2]} 46. Kg3 {[%clk 0:00:46.6]} 46... g5 {[%clk
0:00:52.3]} 47. Kg4 {[%clk 0:00:42.5]} 47... Rxg2+ {[%clk 0:00:51.4]} 48. Kf5
{[%clk 0:00:42.8]} 48... Rb2 {[%clk 0:00:41.9]} 49. Ra6 {[%clk 0:00:40.9]} 49...
Kg7 {[%clk 0:00:39.9]} 50. Ra7+ {[%clk 0:00:39.4]} 50... Kf8 {[%clk 0:00:40.1]}
51. Rh7 {[%clk 0:00:36.8]} 51... Rb6 {[%clk 0:00:38.9]} 52. Nf6 {[%clk
0:00:35.9]} 52... Rc6 {[%clk 0:00:29.7]} 53. Rxh6 {[%clk 0:00:34.5]} 53... Rc5+
{[%clk 0:00:30]} 54. Kg4 {[%clk 0:00:28.4]} 54... Kg7 {[%clk 0:00:30.3]} 55. Ne4
{[%clk 0:00:28]} 55... Ra5 {[%clk 0:00:25.6]} 56. Rb6 {[%clk 0:00:26.7]} 56...
Rxa4 {[%clk 0:00:25.5]} 57. Rb4 {[%clk 0:00:26]} 57... Ra7 {[%clk 0:00:20.9]}
58. Nxg5 {[%clk 0:00:26]} 58... Nd5 {[%clk 0:00:21.1]} 59. Rd4 {[%clk
0:00:24.6]} 59... Nxc3 {[%clk 0:00:21.1]} 60. h4 {[%clk 0:00:24.3]} 60... Nb5
{[%clk 0:00:21.1]} 61. Rd5 {[%clk 0:00:23.9]} 61... Nc3 {[%clk 0:00:21]} 62. Re5
{[%clk 0:00:24.1]} 62... Rd7 {[%clk 0:00:20]} 63. f4 {[%clk 0:00:24.3]} 63...
Nd5 {[%clk 0:00:20.2]} 64. h5 {[%clk 0:00:24.2]} 64... Nf6+ {[%clk 0:00:20.1]}
65. Kh4 {[%clk 0:00:24.7]} 65... Rd1 {[%clk 0:00:18.9]} 66. Re7+ {[%clk
0:00:23.7]} 66... Kg8 {[%clk 0:00:19.4]} 67. Ne4 {[%clk 0:00:21.4]} 67... Rh1+
{[%clk 0:00:15.6]} 68. Kg5 {[%clk 0:00:21.7]} 68... Nxh5 {[%clk 0:00:16]} 69. f5
{[%clk 0:00:21.9]} 69... Kf8 {[%clk 0:00:15.7]} 70. f6 {[%clk 0:00:22.1]} 70...
Nxf6 {[%clk 0:00:15.9]} 71. Kxf6 {[%clk 0:00:21.5]} 71... Rh6+ {[%clk
0:00:15.9]} 72. Kg5 {[%clk 0:00:21.8]} 72... Kxe7 {[%clk 0:00:16.4]} 73. Kxh6
{[%clk 0:00:22.2]} 1/2-1/2